[Event "Late-Titled-Tuesday-Blitz-February-06-2024"]
[Site "Chess.com"]
[Date "2024.02.06"]
[Round "6"]
[White "ukchessbomber"]
[Black "colegiodemadrid"]
[Result "0-1"]
[WhiteElo "2652"]
[BlackElo "2515"]
[TimeControl "180+1"]
[EndTime "15:07:14 PST"]
[Termination "colegiodemadrid won by resignation"]

1. e3 {[%clk 0:03:00.9]} 1... d5 {[%clk 0:02:50.9]} 2. Nf3 {[%clk 0:03:01.2]}
2... Nf6 {[%clk 0:02:49.4]} 3. c4 {[%clk 0:03:01.6]} 3... e6 {[%clk 0:02:49.4]}
4. b3 {[%clk 0:03:02.5]} 4... Be7 {[%clk 0:02:47.8]} 5. Bb2 {[%clk 0:03:03.4]}
5... O-O {[%clk 0:02:47.5]} 6. Be2 {[%clk 0:03:04.1]} 6... a5 {[%clk 0:02:46.7]}
7. a3 {[%clk 0:03:03.6]} 7... dxc4 {[%clk 0:02:44.5]} 8. bxc4 {[%clk 0:03:03.3]}
8... c5 {[%clk 0:02:42.7]} 9. O-O {[%clk 0:03:04.2]} 9... Qb6 {[%clk 0:02:42]}
10. Bc3 {[%clk 0:03:02]} 10... Bd7 {[%clk 0:02:41.3]} 11. d4 {[%clk 0:03:01.2]}
11... cxd4 {[%clk 0:02:41.3]} 12. Bxd4 {[%clk 0:03:00.5]} 12... Qc7 {[%clk
0:02:39.4]} 13. Be5 {[%clk 0:03:00.8]} 13... Qc8 {[%clk 0:02:38.3]} 14. Nc3
{[%clk 0:03:00.6]} 14... Nc6 {[%clk 0:02:35.4]} 15. Bd6 {[%clk 0:03:00.9]} 15...
Rd8 {[%clk 0:02:33.7]} 16. Bxe7 {[%clk 0:03:00.8]} 16... Nxe7 {[%clk 0:02:34.6]}
17. Qd6 {[%clk 0:03:00.7]} 17... Nf5 {[%clk 0:02:32.4]} 18. Qe5 {[%clk
0:02:59.6]} 18... Bc6 {[%clk 0:02:25.5]} 19. Rfd1 {[%clk 0:02:58.9]} 19... Rxd1+
{[%clk 0:02:17.1]} 20. Rxd1 {[%clk 0:02:58.4]} 20... Qf8 {[%clk 0:02:17.8]} 21.
e4 {[%clk 0:01:13.2]} 21... Ne7 {[%clk 0:01:53.2]} 22. Nb5 {[%clk 0:01:13]}
22... Bxe4 {[%clk 0:01:40.2]} 23. Ng5 {[%clk 0:01:13.1]} 23... Bc6 {[%clk
0:01:28.7]} 24. Nc7 {[%clk 0:01:08.7]} 24... Rc8 {[%clk 0:01:22.6]} 25. Ncxe6
{[%clk 0:01:08.8]} 25... Ng6 {[%clk 0:01:09.1]} 26. Qe3 {[%clk 0:00:12.2]} 26...
Qe7 {[%clk 0:00:49.7]} 27. Nd4 {[%clk 0:00:08.1]} 27... Qxe3 {[%clk 0:00:43.4]}
28. fxe3 {[%clk 0:00:09]} 28... h6 {[%clk 0:00:43.9]} 29. Nxc6 {[%clk
0:00:09.3]} 29... bxc6 {[%clk 0:00:35.8]} 30. Nf3 {[%clk 0:00:09.5]} 30... Ne4
{[%clk 0:00:35.2]} 31. Rd7 {[%clk 0:00:08.9]} 31... Rb8 {[%clk 0:00:25.4]} 32.
h4 {[%clk 0:00:09.6]} 32... Nf6 {[%clk 0:00:21]} 33. Rc7 {[%clk 0:00:09.5]}
33... Ng4 {[%clk 0:00:20.9]} 34. Rxc6 {[%clk 0:00:08.1]} 34... Rb1+ {[%clk
0:00:21.3]} 35. Bf1 {[%clk 0:00:05.4]} 35... Nxe3 {[%clk 0:00:21.7]} 36. Nd2
{[%clk 0:00:03.8]} 36... Rd1 {[%clk 0:00:20.9]} 37. Rd6 {[%clk 0:00:04.2]} 37...
Nxf1 {[%clk 0:00:20.8]} 38. c5 {[%clk 0:00:05.1]} 38... Rxd2 {[%clk 0:00:20]}
39. Rb6 {[%clk 0:00:03.7]} 39... Ne3 {[%clk 0:00:19.5]} 40. c6 {[%clk
0:00:04.2]} 40... Rxg2+ {[%clk 0:00:19.5]} 41. Kh1 {[%clk 0:00:04.3]} 41... Rc2
{[%clk 0:00:19.4]} 42. Rb8+ {[%clk 0:00:02.4]} 42... Kh7 {[%clk 0:00:19.4]} 43.
h5 {[%clk 0:00:02.6]} 43... Nf4 {[%clk 0:00:19.2]} 44. a4 {[%clk 0:00:03.3]}
44... Rxc6 {[%clk 0:00:18.8]} 45. Kg1 {[%clk 0:00:03.2]} 45... Nxh5 {[%clk
0:00:18.7]} 46. Kh2 {[%clk 0:00:03.7]} 46... Nf5 {[%clk 0:00:19]} 47. Kh3 {[%clk
0:00:04]} 47... Nf6 {[%clk 0:00:19.2]} 48. Kh2 {[%clk 0:00:03.9]} 48... Rc4
{[%clk 0:00:19]} 49. Rb5 {[%clk 0:00:02.9]} 49... Rxa4 {[%clk 0:00:18.4]} 50.
Rxf5 {[%clk 0:00:03.1]} 50... Kg6 {[%clk 0:00:19]} 51. Rb5 {[%clk 0:00:04]}
51... Ra3 {[%clk 0:00:18.9]} 52. Kg2 {[%clk 0:00:04.3]} 52... h5 {[%clk
0:00:19.4]} 53. Kf2 {[%clk 0:00:05.2]} 53... Ng4+ {[%clk 0:00:19.8]} 54. Kg2
{[%clk 0:00:06.1]} 54... f6 {[%clk 0:00:20.3]} 55. Kh1 {[%clk 0:00:06.5]} 55...
Kh6 {[%clk 0:00:20.9]} 56. Kg2 {[%clk 0:00:07.4]} 56... g5 {[%clk 0:00:21.5]}
57. Kh1 {[%clk 0:00:08.3]} 57... Kg6 {[%clk 0:00:22]} 58. Kg1 {[%clk 0:00:09.2]}
58... h4 {[%clk 0:00:22.6]} 59. Kh1 {[%clk 0:00:10.1]} 59... Kh5 {[%clk
0:00:23.1]} 60. Kg1 {[%clk 0:00:11]} 60... Ra2 {[%clk 0:00:20.6]} 61. Kf1 {[%clk
0:00:11.2]} 61... h3 {[%clk 0:00:20.2]} 62. Rb1 {[%clk 0:00:10]} 62... Kh4
{[%clk 0:00:19.8]} 63. Rc1 {[%clk 0:00:09.6]} 63... h2 {[%clk 0:00:19.4]} 0-1

[Event "Late-Titled-Tuesday-Blitz-February-06-2024"]
[Site "Chess.com"]
[Date "2024.02.06"]
[Round "6"]
[White "MolecularChemist"]
[Black "messiboca"]
[Result "1-0"]
[WhiteElo "2956"]
[BlackElo "2769"]
[TimeControl "180+1"]
[EndTime "15:07:15 PST"]
[Termination "MolecularChemist won by resignation"]

1. Nf3 {[%clk 0:03:00.9]} 1... c5 {[%clk 0:02:59.3]} 2. e3 {[%clk 0:02:55.8]}
2... Nc6 {[%clk 0:02:57.2]} 3. c4 {[%clk 0:02:55.8]} 3... Nf6 {[%clk 0:02:55.4]}
4. b3 {[%clk 0:02:54]} 4... g6 {[%clk 0:02:55.5]} 5. Bb2 {[%clk 0:02:54]} 5...
Bg7 {[%clk 0:02:56.2]} 6. Nc3 {[%clk 0:02:54.6]} 6... O-O {[%clk 0:02:56.4]} 7.
Rc1 {[%clk 0:02:55.1]} 7... d6 {[%clk 0:02:56.8]} 8. Be2 {[%clk 0:02:54.2]} 8...
e5 {[%clk 0:02:57.2]} 9. O-O {[%clk 0:02:53.7]} 9... h6 {[%clk 0:02:56.1]} 10.
d4 {[%clk 0:02:51.3]} 10... exd4 {[%clk 0:02:56.3]} 11. exd4 {[%clk 0:02:52.2]}
11... Bg4 {[%clk 0:02:56.5]} 12. d5 {[%clk 0:02:49.5]} 12... Bxf3 {[%clk
0:02:56.1]} 13. Bxf3 {[%clk 0:02:49.6]} 13... Nd4 {[%clk 0:02:56.5]} 14. g3
{[%clk 0:02:46.3]} 14... Re8 {[%clk 0:02:49.4]} 15. Bg2 {[%clk 0:02:46.4]} 15...
a6 {[%clk 0:02:50]} 16. Qd3 {[%clk 0:02:38]} 16... b5 {[%clk 0:02:48.8]} 17.
Rfe1 {[%clk 0:02:31.8]} 17... Ng4 {[%clk 0:02:42.4]} 18. Rxe8+ {[%clk
0:02:11.4]} 18... Qxe8 {[%clk 0:02:42]} 19. Ne4 {[%clk 0:02:10.8]} 19... f5
{[%clk 0:02:17.3]} 20. Re1 {[%clk 0:01:13.7]} 20... fxe4 {[%clk 0:02:16.8]} 21.
Rxe4 {[%clk 0:01:14.6]} 21... Ne5 {[%clk 0:02:09.8]} 22. Qd1 {[%clk 0:01:09.3]}
22... bxc4 {[%clk 0:01:26.7]} 23. f4 {[%clk 0:01:06.3]} 23... Nd3 {[%clk
0:01:27.1]} 24. Rxe8+ {[%clk 0:00:51.1]} 24... Rxe8 {[%clk 0:01:28]} 25. Bxd4
{[%clk 0:00:32]} 25... Bxd4+ {[%clk 0:00:51.2]} 26. Kf1 {[%clk 0:00:31.6]} 26...
Bc3 {[%clk 0:00:47.7]} 27. Be4 {[%clk 0:00:15.5]} 27... Rxe4 {[%clk 0:00:47.6]}
28. Qg4 {[%clk 0:00:15.6]} 28... Kh7 {[%clk 0:00:19.9]} 29. bxc4 {[%clk
0:00:15.5]} 29... Bg7 {[%clk 0:00:15.6]} 30. Qd7 {[%clk 0:00:14.4]} 30... Rxc4
{[%clk 0:00:12.2]} 31. Qxd6 {[%clk 0:00:14.8]} 31... Rd4 {[%clk 0:00:10.4]} 32.
Qe6 {[%clk 0:00:08.4]} 32... Nxf4 {[%clk 0:00:02.5]} 33. gxf4 {[%clk 0:00:09.3]}
33... Rxf4+ {[%clk 0:00:02.7]} 34. Ke2 {[%clk 0:00:06.4]} 34... Rf5 {[%clk
0:00:02.9]} 35. Kd1 {[%clk 0:00:05.6]} 35... Re5 {[%clk 0:00:03.2]} 36. Qc6
{[%clk 0:00:06]} 36... c4 {[%clk 0:00:03.6]} 37. Qxc4 {[%clk 0:00:05.4]} 37...
Rh5 {[%clk 0:00:03.6]} 38. d6 {[%clk 0:00:04.6]} 38... Rxh2 {[%clk 0:00:02.7]}
39. d7 {[%clk 0:00:03.6]} 39... Rh1+ {[%clk 0:00:03.3]} 40. Kc2 {[%clk
0:00:02.7]} 40... Rh2+ {[%clk 0:00:03.7]} 41. Kc1 {[%clk 0:00:03.1]} 41... Rh1+
{[%clk 0:00:02.8]} 42. Kd2 {[%clk 0:00:03.7]} 42... Rh2+ {[%clk 0:00:03.4]} 43.
Kd3 {[%clk 0:00:04.2]} 43... Rh3+ {[%clk 0:00:03.6]} 44. Kc2 {[%clk 0:00:03.9]}
44... Rh2+ {[%clk 0:00:03.9]} 45. Kd1 {[%clk 0:00:01.4]} 45... Rh1+ {[%clk
0:00:03.9]} 46. Ke2 {[%clk 0:00:02.1]} 46... Rh2+ {[%clk 0:00:04.3]} 47. Ke3
{[%clk 0:00:02.8]} 47... Rh3+ {[%clk 0:00:04.8]} 48. Kf2 {[%clk 0:00:03.5]}
48... Rh2+ {[%clk 0:00:04.8]} 49. Kg1 {[%clk 0:00:03.1]} 49... Rd2 {[%clk
0:00:05.4]} 50. Qc7 {[%clk 0:00:03]} 50... Rd1+ {[%clk 0:00:05.9]} 51. Kf2
{[%clk 0:00:02.8]} 51... Be5 {[%clk 0:00:05.8]} 52. d8=Q+ {[%clk 0:00:02.1]}
52... Bxc7 {[%clk 0:00:06.1]} 53. Qxc7+ {[%clk 0:00:03]} 53... Kg8 {[%clk
0:00:06.3]} 54. Qc8+ {[%clk 0:00:02.7]} 1-0

[Event "Late-Titled-Tuesday-Blitz-February-06-2024"]
[Site "Chess.com"]
[Date "2024.02.06"]
[Round "6"]
[White "alphienothere"]
[Black "yobdc"]
[Result "1-0"]
[WhiteElo "2276"]
[BlackElo "2598"]
[TimeControl "180+1"]
[EndTime "15:07:15 PST"]
[Termination "alphienothere won on time"]

1. d4 {[%clk 0:02:59.2]} 1... Nf6 {[%clk 0:02:59.8]} 2. Nf3 {[%clk 0:02:59.3]}
2... g6 {[%clk 0:03:00.1]} 3. Bg5 {[%clk 0:02:49.2]} 3... Bg7 {[%clk 0:02:59.7]}
4. Nbd2 {[%clk 0:02:44.6]} 4... d5 {[%clk 0:02:57]} 5. c3 {[%clk 0:02:41.9]}
5... h6 {[%clk 0:02:56.8]} 6. Bh4 {[%clk 0:02:39.8]} 6... Nbd7 {[%clk
0:02:51.9]} 7. e3 {[%clk 0:02:37.6]} 7... c5 {[%clk 0:02:51.7]} 8. Bd3 {[%clk
0:02:34.6]} 8... b6 {[%clk 0:02:50.2]} 9. O-O {[%clk 0:02:31]} 9... Bb7 {[%clk
0:02:50.4]} 10. Bg3 {[%clk 0:02:18.1]} 10... O-O {[%clk 0:02:44.6]} 11. Ne5
{[%clk 0:02:15.6]} 11... Nh5 {[%clk 0:02:39.9]} 12. Nxd7 {[%clk 0:02:07.3]}
12... Qxd7 {[%clk 0:02:39.4]} 13. Be5 {[%clk 0:02:01.3]} 13... f6 {[%clk
0:02:23.3]} 14. Bxg6 {[%clk 0:01:58.2]} 14... fxe5 {[%clk 0:02:23.3]} 15. Qxh5
{[%clk 0:01:55.5]} 15... exd4 {[%clk 0:02:18]} 16. exd4 {[%clk 0:01:53.1]} 16...
cxd4 {[%clk 0:02:16.4]} 17. cxd4 {[%clk 0:01:52.6]} 17... Rf4 {[%clk 0:02:10.4]}
18. Rfe1 {[%clk 0:01:48.7]} 18... Raf8 {[%clk 0:02:07.6]} 19. Nf3 {[%clk
0:01:36.2]} 19... Qg4 {[%clk 0:01:29.3]} 20. Qxg4 {[%clk 0:01:30.3]} 20... Rxg4
{[%clk 0:01:29.4]} 21. Bh5 {[%clk 0:01:29.9]} 21... Re4 {[%clk 0:01:29.4]} 22.
Bg6 {[%clk 0:01:27.3]} 22... Rxe1+ {[%clk 0:01:22.1]} 23. Rxe1 {[%clk
0:01:24.4]} 23... Bf6 {[%clk 0:01:21.6]} 24. h3 {[%clk 0:01:19]} 24... Rc8
{[%clk 0:01:21.1]} 25. Bd3 {[%clk 0:01:14.8]} 25... Rc7 {[%clk 0:01:09.2]} 26.
Ne5 {[%clk 0:01:12.4]} 26... Kg7 {[%clk 0:01:08.6]} 27. f4 {[%clk 0:01:07.7]}
27... Bc8 {[%clk 0:01:08.2]} 28. g4 {[%clk 0:01:05.1]} 28... a5 {[%clk
0:01:03.4]} 29. Kg2 {[%clk 0:01:00.8]} 29... a4 {[%clk 0:01:03.1]} 30. Kg3
{[%clk 0:00:57.7]} 30... b5 {[%clk 0:00:52.4]} 31. Bxb5 {[%clk 0:00:51.8]} 31...
Rb7 {[%clk 0:00:52.1]} 32. Bxa4 {[%clk 0:00:49.1]} 32... Rxb2 {[%clk 0:00:52.1]}
33. Bb3 {[%clk 0:00:46.2]} 33... Ba6 {[%clk 0:00:45.9]} 34. Nf3 {[%clk
0:00:45.2]} 34... e6 {[%clk 0:00:19.5]} 35. g5 {[%clk 0:00:41.8]} 35... hxg5
{[%clk 0:00:18.6]} 36. fxg5 {[%clk 0:00:41.3]} 36... Bd8 {[%clk 0:00:18]} 37.
Ne5 {[%clk 0:00:34]} 37... Bc7 {[%clk 0:00:14.2]} 38. Kg4 {[%clk 0:00:29.1]}
38... Be2+ {[%clk 0:00:13.4]} 39. Kg3 {[%clk 0:00:26.8]} 39... Bh5 {[%clk
0:00:12.9]} 40. Rc1 {[%clk 0:00:23.2]} 40... Bb6 {[%clk 0:00:06.7]} 41. Rc6
{[%clk 0:00:20.2]} 41... Bxd4 {[%clk 0:00:06.7]} 42. Rxe6 {[%clk 0:00:20.5]}
42... Re2 {[%clk 0:00:06.2]} 43. Re7+ {[%clk 0:00:13.8]} 43... Kf8 {[%clk
0:00:05.4]} 44. Ng6+ {[%clk 0:00:11.8]} 44... Kg8 {[%clk 0:00:05.1]} 45. Rxe2
{[%clk 0:00:10.1]} 45... Bxe2 {[%clk 0:00:06]} 46. Nf4 {[%clk 0:00:10.5]} 46...
Be5 {[%clk 0:00:06.4]} 47. Kf2 {[%clk 0:00:09.4]} 47... Bc4 {[%clk 0:00:02]} 48.
Bxc4 {[%clk 0:00:09.8]} 48... dxc4 {[%clk 0:00:02.9]} 49. Ne2 {[%clk 0:00:10.4]}
49... Kg7 {[%clk 0:00:02.7]} 50. Ke3 {[%clk 0:00:10.8]} 50... Kg6 {[%clk
0:00:02.8]} 51. h4 {[%clk 0:00:11.7]} 51... Kh5 {[%clk 0:00:03]} 52. Nf4+ {[%clk
0:00:11.6]} 52... Kg4 {[%clk 0:00:01.4]} 53. Nd5 {[%clk 0:00:11.7]} 53... Kxh4
{[%clk 0:00:01.3]} 54. g6 {[%clk 0:00:12.2]} 54... Kh5 {[%clk 0:00:01.7]} 55.
Ke4 {[%clk 0:00:12.9]} 55... Bg7 {[%clk 0:00:01.6]} 56. a4 {[%clk 0:00:13.6]}
56... Kxg6 {[%clk 0:00:02]} 57. a5 {[%clk 0:00:14.1]} 57... c3 {[%clk
0:00:01.2]} 58. Nxc3 {[%clk 0:00:13.8]} 1-0

[Event "Late-Titled-Tuesday-Blitz-February-06-2024"]
[Site "Chess.com"]
[Date "2024.02.06"]
[Round "6"]
[White "mbojan"]
[Black "valeriocarnicelli"]
[Result "1/2-1/2"]
[WhiteElo "2828"]
[BlackElo "2538"]
[TimeControl "180+1"]
[EndTime "15:07:18 PST"]
[Termination "Game drawn - insufficient material"]

1. e4 {[%clk 0:03:00.9]} 1... e6 {[%clk 0:03:00]} 2. d4 {[%clk 0:02:57.1]} 2...
d5 {[%clk 0:03:00.9]} 3. Nc3 {[%clk 0:02:57.7]} 3... Bb4 {[%clk 0:03:00.3]} 4.
e5 {[%clk 0:02:57.9]} 4... c5 {[%clk 0:02:59.8]} 5. a3 {[%clk 0:02:58.4]} 5...
Bxc3+ {[%clk 0:03:00.2]} 6. bxc3 {[%clk 0:02:59.3]} 6... Ne7 {[%clk 0:03:00.7]}
7. Qg4 {[%clk 0:02:59.5]} 7... Qc7 {[%clk 0:03:00.8]} 8. Qxg7 {[%clk 0:02:59.7]}
8... Rg8 {[%clk 0:03:01.4]} 9. Qxh7 {[%clk 0:03:00.4]} 9... cxd4 {[%clk
0:03:01.4]} 10. Ne2 {[%clk 0:03:01]} 10... Nbc6 {[%clk 0:02:57.7]} 11. f4 {[%clk
0:03:01.2]} 11... dxc3 {[%clk 0:02:55.1]} 12. Qd3 {[%clk 0:03:00.7]} 12... Bd7
{[%clk 0:02:54.4]} 13. Nxc3 {[%clk 0:02:48.5]} 13... a6 {[%clk 0:02:52.9]} 14.
Rb1 {[%clk 0:02:43.4]} 14... Rc8 {[%clk 0:02:42.6]} 15. Ne2 {[%clk 0:02:32.3]}
15... Na5 {[%clk 0:02:35.2]} 16. Nd4 {[%clk 0:02:31.7]} 16... Nc4 {[%clk
0:02:31.7]} 17. h3 {[%clk 0:02:29.2]} 17... Nc6 {[%clk 0:02:19]} 18. Nxc6 {[%clk
0:02:11.9]} 18... Bxc6 {[%clk 0:02:19.9]} 19. g4 {[%clk 0:02:10.9]} 19... Bb5
{[%clk 0:02:11.7]} 20. Qd4 {[%clk 0:01:06.3]} 20... Qa5+ {[%clk 0:01:30.6]} 21.
c3 {[%clk 0:01:06.6]} 21... Nxa3 {[%clk 0:01:14.9]} 22. Bxa3 {[%clk 0:01:06.2]}
22... Qxa3 {[%clk 0:01:15.8]} 23. Bxb5+ {[%clk 0:01:04.6]} 23... axb5 {[%clk
0:01:16.3]} 24. Qb4 {[%clk 0:00:21.3]} 24... Qxc3+ {[%clk 0:01:14.7]} 25. Qxc3
{[%clk 0:00:15.8]} 25... Rxc3 {[%clk 0:01:15.6]} 26. Kf2 {[%clk 0:00:07.2]}
26... Rc5 {[%clk 0:01:12]} 27. Rhc1 {[%clk 0:00:04.3]} 27... Rc6 {[%clk
0:00:50]} 28. Rd1 {[%clk 0:00:01.9]} 28... Rh8 {[%clk 0:00:45.5]} 29. Rd3 {[%clk
0:00:02]} 29... Rc5 {[%clk 0:00:40.6]} 30. Kg3 {[%clk 0:00:02.6]} 30... Kd7
{[%clk 0:00:39.6]} 31. Rb4 {[%clk 0:00:02.4]} 31... Kc6 {[%clk 0:00:38.7]} 32.
Rdb3 {[%clk 0:00:02.1]} 32... Ra8 {[%clk 0:00:06.6]} 33. h4 {[%clk 0:00:02.5]}
33... Ra4 {[%clk 0:00:06.9]} 34. h5 {[%clk 0:00:03.2]} 34... Rxb4 {[%clk
0:00:03.2]} 35. Rxb4 {[%clk 0:00:04.1]} 35... Kb6 {[%clk 0:00:03.7]} 36. h6
{[%clk 0:00:04.3]} 36... Rc8 {[%clk 0:00:03.7]} 37. Kh4 {[%clk 0:00:03.6]} 37...
Ka5 {[%clk 0:00:02.3]} 38. Rb1 {[%clk 0:00:03.6]} 38... b4 {[%clk 0:00:02.8]}
39. Kg5 {[%clk 0:00:03.8]} 39... Ka4 {[%clk 0:00:02.5]} 40. Kf6 {[%clk 0:00:04]}
40... b3 {[%clk 0:00:02.9]} 41. Kxf7 {[%clk 0:00:04.2]} 41... Ka3 {[%clk
0:00:03.6]} 42. g5 {[%clk 0:00:04.4]} 42... Ka2 {[%clk 0:00:03.3]} 43. g6 {[%clk
0:00:05.1]} 43... Kxb1 {[%clk 0:00:03.1]} 44. g7 {[%clk 0:00:05.3]} 44... b2
{[%clk 0:00:03.8]} 45. g8=Q {[%clk 0:00:04.5]} 45... Rxg8 {[%clk 0:00:04.1]} 46.
Kxg8 {[%clk 0:00:05.4]} 46... Kc1 {[%clk 0:00:01.6]} 47. h7 {[%clk 0:00:06.3]}
47... b1=Q {[%clk 0:00:02.1]} 48. h8=Q {[%clk 0:00:07.2]} 48... Qf5 {[%clk
0:00:01.9]} 49. Qf6 {[%clk 0:00:07.1]} 49... d4 {[%clk 0:00:01]} 50. Qxf5 {[%clk
0:00:07.4]} 50... exf5 {[%clk 0:00:01.9]} 51. e6 {[%clk 0:00:08.3]} 51... d3
{[%clk 0:00:02.6]} 52. e7 {[%clk 0:00:09.2]} 52... d2 {[%clk 0:00:03.4]} 53.
e8=Q {[%clk 0:00:10.1]} 53... d1=Q {[%clk 0:00:04.1]} 54. Qc8+ {[%clk
0:00:10.3]} 54... Qc2 {[%clk 0:00:04.2]} 55. Qxb7 {[%clk 0:00:10.3]} 55... Qc4+
{[%clk 0:00:04.3]} 56. Kg7 {[%clk 0:00:08.6]} 56... Qxf4 {[%clk 0:00:05.2]} 57.
Kf6 {[%clk 0:00:08.4]} 57... Kd2 {[%clk 0:00:05.2]} 58. Qd7+ {[%clk 0:00:08.2]}
58... Ke3 {[%clk 0:00:04.9]} 59. Qxf5 {[%clk 0:00:09.1]} 59... Qxf5+ {[%clk
0:00:05.1]} 60. Kxf5 {[%clk 0:00:10]} 1/2-1/2

[Event "Late-Titled-Tuesday-Blitz-February-06-2024"]
[Site "Chess.com"]
[Date "2024.02.06"]
[Round "6"]
[White "Viktor_Poddubnyi"]
[Black "akinov-akinseye"]
[Result "1-0"]
[WhiteElo "2269"]
[BlackElo "1902"]
[TimeControl "180+1"]
[EndTime "15:07:18 PST"]
[Termination "Viktor_Poddubnyi won by resignation"]

1. e4 {[%clk 0:03:00]} 1... d5 {[%clk 0:02:56.9]} 2. exd5 {[%clk 0:02:59.8]}
2... Qxd5 {[%clk 0:02:57.5]} 3. Nc3 {[%clk 0:03:00.1]} 3... Qd6 {[%clk
0:02:57.9]} 4. d4 {[%clk 0:02:59.3]} 4... Nf6 {[%clk 0:02:58.3]} 5. Nf3 {[%clk
0:02:59.1]} 5... g6 {[%clk 0:02:58.9]} 6. g3 {[%clk 0:02:40.1]} 6... Bg7 {[%clk
0:02:58.3]} 7. Bg2 {[%clk 0:02:39.8]} 7... c6 {[%clk 0:02:56.3]} 8. O-O {[%clk
0:02:37.5]} 8... O-O {[%clk 0:02:55.5]} 9. Bf4 {[%clk 0:02:36.1]} 9... Qd8
{[%clk 0:02:55.3]} 10. Re1 {[%clk 0:02:30.3]} 10... Nbd7 {[%clk 0:02:54.6]} 11.
Qe2 {[%clk 0:02:25.7]} 11... e6 {[%clk 0:02:53.1]} 12. Ne5 {[%clk 0:02:10]}
12... Nb6 {[%clk 0:02:49.7]} 13. Rad1 {[%clk 0:02:06.3]} 13... Nbd5 {[%clk
0:02:48.2]} 14. Bd2 {[%clk 0:01:57.9]} 14... Qb6 {[%clk 0:02:47.9]} 15. Nxd5
{[%clk 0:01:37.4]} 15... exd5 {[%clk 0:02:46]} 16. b3 {[%clk 0:01:28.5]} 16...
Qxd4 {[%clk 0:02:40.3]} 17. Bh6 {[%clk 0:01:05.8]} 17... Qb6 {[%clk 0:02:32.3]}
18. Bxg7 {[%clk 0:01:04.6]} 18... Kxg7 {[%clk 0:02:33.2]} 19. h4 {[%clk
0:00:57.9]} 19... h5 {[%clk 0:02:19.5]} 20. Qd2 {[%clk 0:00:56]} 20... Ng4
{[%clk 0:02:06.2]} 21. Nd3 {[%clk 0:00:38.2]} 21... Bf5 {[%clk 0:01:58.7]} 22.
Nf4 {[%clk 0:00:32.9]} 22... Rae8 {[%clk 0:01:37.3]} 23. a4 {[%clk 0:00:32.1]}
23... a6 {[%clk 0:01:25.4]} 24. a5 {[%clk 0:00:18.9]} 24... Qc5 {[%clk
0:01:19.6]} 25. c3 {[%clk 0:00:16.3]} 25... f6 {[%clk 0:01:04.7]} 26. b4 {[%clk
0:00:15.9]} 26... Qd6 {[%clk 0:01:02.2]} 27. c4 {[%clk 0:00:10.3]} 27... Rxe1+
{[%clk 0:00:54.3]} 28. Rxe1 {[%clk 0:00:11.2]} 28... Rd8 {[%clk 0:00:28.5]} 29.
cxd5 {[%clk 0:00:10.5]} 29... cxd5 {[%clk 0:00:27.5]} 30. Nxd5 {[%clk
0:00:07.1]} 30... Be6 {[%clk 0:00:19.8]} 31. Rd1 {[%clk 0:00:07.3]} 31... Ne5
{[%clk 0:00:18.3]} 32. Qd4 {[%clk 0:00:05]} 32... Bxd5 {[%clk 0:00:17.2]} 33.
Qxd5 {[%clk 0:00:02.3]} 33... Qxd5 {[%clk 0:00:16.9]} 34. Rxd5 {[%clk
0:00:03.2]} 34... Rxd5 {[%clk 0:00:16.5]} 35. Bxd5 {[%clk 0:00:04.1]} 35... Nd3
{[%clk 0:00:16]} 36. b5 {[%clk 0:00:01.7]} 36... axb5 {[%clk 0:00:14.4]} 37.
Bxb7 {[%clk 0:00:02]} 37... b4 {[%clk 0:00:14.4]} 38. a6 {[%clk 0:00:02.3]}
38... b3 {[%clk 0:00:11.3]} 39. Be4 {[%clk 0:00:02.4]} 39... b2 {[%clk
0:00:11.9]} 40. Bxd3 {[%clk 0:00:02.4]} 40... b1=Q+ {[%clk 0:00:11.2]} 41. Bxb1
{[%clk 0:00:03.3]} 41... g5 {[%clk 0:00:10.9]} 42. a7 {[%clk 0:00:04.2]} 42...
gxh4 {[%clk 0:00:10.5]} 43. gxh4 {[%clk 0:00:04.5]} 43... Kf7 {[%clk 0:00:09.4]}
44. a8=Q {[%clk 0:00:05.4]} 44... Ke6 {[%clk 0:00:10.3]} 45. Qe4+ {[%clk
0:00:05.7]} 45... Kd6 {[%clk 0:00:09.8]} 46. Qh7 {[%clk 0:00:06.6]} 1-0